bitfinex-derivatives/quotes_ETHF0:USTF0_20260125
["timestamp","ask_amount","ask_price","bid_price","bid_amount"]
[1769375259148,3.53345363,2824.6,2822.7,5.67557557]
[1769375259341,0.00431648,2824.7,2823.1,3.59657557]
[1769375259750,0.00431648,2824.7,2823.2,3.59657557]
[1769375259944,3.53777011,2824.7,2822.2,11.32659845]
[1769375260149,3.53345363,2824.5,2822.3,2.079]
[1769375260534,0.17725,2824.1,2822.2,3.59657557]
[1769375260741,3.53345363,2824.0,2822.2,5.67557557]
[1769375260940,3.53345363,2824.0,2822.2,3.59657557]
[1769375261143,3.53345363,2823.8,2822.0,2.08176834]
[1769375261446,0.17732,2822.9,2822.0,0.00276834]
[1769375261643,1.40422665,2823.6,2821.2,3.59657557]
[1769375261644,3.53345363,2822.8,2821.2,3.59657557]
[1769375261941,3.71079363,2822.7,2820.8,2.079]
[1769375262148,3.48322665,2823.1,2820.2,3.77406557]
[1769375262149,3.71080363,2822.5,2820.2,3.77406557]
[1769375262334,3.53345363,2822.3,2820.3,2.601]
[1769375262541,3.53345363,2822.2,2820.3,2.6052683]
[1769375263545,2.079,2822.1,2820.3,6.20184387]
[1769375263850,3.53345363,2822.2,2820.5,5.00080222]
[1769375264241,3.53345363,2822.2,2820.6,3.59657557]
[1769375264436,0.00365874,2822.3,2820.6,3.59657557]
[1769375264643,0.00365874,2822.3,2821.1,3.59657557]
[1769375269046,0.00365874,2822.3,2820.6,3.59657557]
[1769375269250,3.53711237,2822.3,2820.6,3.59657557]
[1769375273753,0.00365874,2822.3,2820.6,3.59657557]
[1769375275249,3.53711237,2822.3,2820.6,3.59657557]
[1769375275463,3.53345363,2822.2,2820.3,0.0042683]
[1769375275649,3.53345363,2821.9,2820.3,0.0042683]
[1769375277252,3.71083363,2822.0,2820.3,0.0042683]
[1769375277645,3.53345363,2821.8,2820.3,0.0042683]
[1769375280953,3.71086363,2821.5,2820.3,0.0042683]
[1769375282855,3.71083363,2822.0,2820.3,0.0042683]
[1769375283045,3.53275536,2821.5,2820.3,0.0042683]
[1769375283352,3.53275536,2821.3,2820.3,0.0042683]
[1769375283761,3.71018536,2821.2,2819.5,3.84971246]
[1769375284453,3.71018536,2821.2,2819.0,0.17756]
[1769375284454,3.71020536,2820.9,2819.0,3.84971246]
[1769375284649,3.53275536,2820.6,2818.6,3.84971246]
[1769375284853,3.71022536,2820.6,2818.6,3.85228666]
[1769375285150,3.71025536,2820.2,2818.6,3.85228666]
[1769375285352,3.71284513,2820.2,2818.6,0.0025742]
[1769375286354,3.53534513,2820.2,2818.6,3.85228666]
[1769375286760,3.53534513,2820.2,2818.6,0.0025742]
[1769375287364,3.53275536,2820.0,2818.6,0.0025742]
[1769375287764,0.00258977,2820.2,2818.6,3.85228666]
[1769375287961,0.00258977,2820.2,2818.8,5.25393911]
[1769375288661,0.00258977,2820.2,2819.0,3.84971246]
[1769375288860,3.53275536,2821.0,2819.0,3.84971246]
[1769375289061,3.71019536,2821.0,2819.0,3.84971246]
[1769375289256,3.53275536,2820.8,2818.6,0.0025742]
[1769375289460,3.71022536,2820.5,2818.6,0.0025742]
[1769375289866,3.71410789,2820.5,2818.6,0.0025742]
[1769375290062,3.71024536,2820.3,2818.6,0.0025742]
[1769375290267,3.53275536,2820.1,2818.6,0.0025742]
[1769375292460,3.71025536,2820.1,2818.6,0.0025742]
[1769375295063,3.53275536,2819.9,2818.6,0.0025742]
[1769375295261,3.53275536,2819.7,2818.6,0.0025742]
[1769375295462,3.75278504,2819.5,2817.5,3.84971246]
[1769375296069,3.93032504,2819.4,2817.5,3.84971246]
[1769375296262,2.081,2819.5,2817.0,3.77359524]
[1769375296263,3.75278504,2819.1,2817.0,3.77359524]
[1769375296471,3.75278504,2819.1,2817.0,3.77715775]
[1769375297373,3.75278504,2819.0,2817.0,3.77715775]
[1769375298864,3.75278504,2818.7,2817.0,3.59946775]
[1769375299067,3.75278504,2818.7,2817.0,0.00356251]
[1769375299268,3.93037504,2818.7,2817.0,0.00356251]
[1769375300072,3.75278504,2818.5,2817.0,0.00356251]
[1769375300378,0.00409466,2818.5,2817.0,3.59946775]
[1769375300777,31.71973035,2819.6,2817.0,3.59946775]
[1769375300778,3.75278504,2819.5,2817.4,3.59590524]
[1769375301182,3.75278504,2819.5,2817.5,0.17766]
[1769375301481,3.75278504,2819.5,2817.5,3.77356524]
[1769375301687,5.83378504,2819.5,2817.5,3.77356524]
[1769375301979,5.83651372,2819.5,2817.5,3.77356524]
[1769375302178,3.75278504,2819.4,2817.5,3.59590524]
[1769375302584,3.93032504,2819.4,2817.5,3.59590524]
[1769375303488,3.93032504,2819.4,2817.0,0.18125251]
[1769375303489,3.75278504,2818.9,2817.0,3.59946775]
[1769375304986,3.75278504,2819.4,2817.2,3.59590524]
[1769375305184,5.83478504,2819.4,2817.2,3.59590524]
[1769375305383,5.83478504,2819.4,2817.2,3.77358524]
[1769375306984,0.00272868,2819.5,2817.6,3.59590524]
[1769375307187,0.00272868,2819.5,2817.8,3.59590524]
[1769375318199,0.00272868,2819.5,2818.0,3.73084625]
[1769375318501,0.00272868,2819.5,2818.2,3.73084625]
[1769375318701,0.00272868,2819.5,2818.4,3.73084625]
[1769375319791,2.11203113,2820.4,2818.4,3.73084625]
[1769375319992,3.71694024,2820.7,2818.8,3.73084625]
[1769375320191,3.93768977,2820.6,2818.8,3.73084625]
[1769375320402,3.71694024,2820.7,2818.8,3.73084625]
[1769375320901,3.71974389,2820.7,2818.8,3.73084625]
[1769375321099,0.00280365,2820.7,2818.8,3.90842625]
[1769375321399,3.71974389,2820.7,2818.8,6.48642625]
[1769375321601,3.71974389,2820.7,2818.9,3.73084625]
[1769375326903,3.71694024,2820.5,2818.9,3.73084625]
[1769375327097,3.71694024,2820.5,2818.3,3.73084625]
[1769375327298,3.71694024,2820.2,2818.3,3.73084625]
[1769375327495,3.89444024,2820.2,2818.3,3.73084625]
[1769375328299,2.081,2820.1,2818.2,0.17762]
[1769375328502,3.71694024,2820.0,2818.2,0.17762]
[1769375330302,3.71694024,2820.0,2818.2,3.90846625]
[1769375336005,0.1775,2820.2,2818.2,3.90846625]
[1769375336810,0.00280365,2820.7,2818.7,3.73084625]
[1769375337112,0.00280365,2820.7,2819.0,3.73084625]
[1769375337304,0.00280365,2820.7,2819.2,3.73084625]
[1769375338506,0.00280365,2820.7,2819.0,0.00424687]
[1769375338507,3.71974389,2820.7,2819.0,0.00424687]
[1769375339116,3.71974389,2820.7,2819.0,3.73509312]
[1769375341011,3.71694024,2820.5,2819.0,0.00424687]
[1769375342113,3.71694024,2820.0,2819.0,0.00424687]
[1769375342617,3.71694024,2820.0,2818.1,3.73084625]
[1769375343008,3.89445024,2819.9,2818.1,3.73084625]
[1769375343410,3.71694024,2819.9,2818.1,3.73346998]
[1769375344515,3.89445024,2819.9,2818.1,3.73346998]
[1769375346414,3.89445024,2819.9,2818.1,0.00262373]
[1769375346720,3.63592699,2819.7,2818.1,0.00262373]
[1769375347914,3.81345699,2819.7,2818.1,0.00262373]
[1769375349123,3.63592699,2819.5,2818.1,0.00262373]
[1769375351621,3.81346699,2819.5,2818.1,0.00262373]
[1769375353122,2.593,2819.4,2818.1,0.00262373]
[1769375355418,6.22892699,2819.4,2818.1,0.00262373]
[1769375356320,3.77718053,2819.3,2818.1,0.00262373]
[1769375364427,1.408004,2819.8,2818.1,0.00262373]
[1769375364428,3.77718053,2819.7,2818.1,0.00262373]
[1769375364633,0.17751,2820.0,2818.1,3.78637479]
[1769375364829,3.95469053,2820.0,2818.1,3.78637479]
[1769375365027,3.77718053,2819.8,2818.1,3.78637479]
[1769375365628,3.95470053,2819.8,2818.1,3.78637479]
[1769375368234,3.77718053,2819.6,2818.1,0.00262373]
[1769375368540,3.95471053,2819.6,2818.1,0.00262373]
[1769375369036,3.77718053,2819.4,2818.1,0.00262373]
[1769375370039,2.082,2819.6,2818.1,0.00262373]
[1769375370040,3.77718053,2819.2,2818.1,0.00262373]
[1769375370243,3.95474053,2819.2,2818.1,0.00262373]
[1769375370841,3.77718053,2819.0,2817.3,3.78375106]
[1769375371135,3.95475053,2819.0,2817.3,3.78375106]
[1769375371538,3.77718053,2818.8,2816.9,3.96145106]
[1769375371939,3.95476053,2818.8,2816.9,3.78672752]
[1769375372236,3.77718053,2818.6,2816.9,3.78672752]
[1769375372437,3.7807832,2818.6,2816.9,3.78672752]
[1769375372637,0.00360267,2818.6,2816.9,3.78672752]
[1769375376142,3.99571531,2818.6,2816.9,3.78672752]
[1769375377948,3.81452264,2818.4,2816.9,0.00297646]
[1769375378147,3.81452264,2818.2,2816.9,0.00297646]
[1769375378439,3.81452264,2818.0,2816.9,0.00297646]
[1769375379438,0.17764,2817.9,2816.9,0.00297646]
[1769375379840,3.81452264,2818.4,2816.9,0.00297646]
[1769375381154,3.99212264,2818.4,2816.9,0.00297646]
[1769375381356,3.81452264,2818.2,2816.9,0.00297646]
[1769375382462,3.99214264,2818.2,2816.9,0.00297646]
[1769375383459,0.17762,2818.1,2816.9,0.00297646]
[1769375383666,3.81452264,2818.0,2816.9,0.00297646]
[1769375383859,3.99216264,2817.9,2816.9,0.00297646]
[1769375384368,3.81452264,2818.3,2816.9,0.00297646]
[1769375384962,2.08560267,2818.6,2816.9,3.8125226]
[1769375385361,5.90012531,2818.6,2816.9,3.8125226]
[1769375386064,3.81452264,2818.5,2816.9,3.8125226]
[1769375386264,3.81452264,2818.5,2816.9,0.00297646]
[1769375386665,3.99212264,2818.5,2816.9,0.00297646]
[1769375388659,3.81452264,2818.3,2816.9,0.00297646]
[1769375393370,3.81452264,2818.3,2816.9,3.8125226]
[1769375394169,0.00360267,2818.6,2816.9,3.8125226]
[1769375394766,0.00360267,2818.6,2817.1,3.80954614]
[1769375395369,0.00360267,2818.6,2817.3,3.98721614]
[1769375400275,0.00360267,2818.6,2817.4,2.542]
[1769375400578,0.00360267,2818.6,2817.5,3.80954614]
[1769375401480,0.00360267,2818.6,2817.4,3.824]
[1769375401981,3.81812531,2818.6,2817.4,3.824]
[1769375402281,3.81812531,2818.6,2816.9,0.00297646]
[1769375402282,3.99572531,2818.6,2816.9,0.00297646]
[1769375406479,3.52230346,2818.4,2816.9,0.00297646]
[1769375406881,3.52230346,2818.2,2816.9,0.00297646]
[1769375407281,3.52230346,2818.0,2816.9,0.00297646]
[1769375409082,3.52230346,2818.4,2816.9,3.82955764]
[1769375414088,3.52230346,2818.2,2816.9,0.00297646]
[1769375415885,3.77698445,2818.0,2816.9,0.00297646]
[1769375416181,3.77698445,2817.8,2816.0,3.48689462]
[1769375416386,3.95462445,2817.8,2816.0,3.48689462]
[1769375416776,3.95462445,2817.8,2815.3,11.3947175]
[1769375416777,3.77698445,2817.4,2815.3,11.3947175]
[1769375417093,3.77698445,2817.1,2815.3,3.49032495]
[1769375420488,3.95467445,2817.1,2815.3,3.49032495]
[1769375426398,3.95470445,2816.7,2815.3,0.00343033]
[1769375430104,3.77698445,2817.1,2815.3,3.49032495]
[1769375430302,0.17768,2817.3,2815.3,3.66812495]
[1769375430601,3.552,2817.4,2815.5,3.48689462]
[1769375430803,3.77698445,2817.3,2815.7,3.48689462]
[1769375431805,3.95466445,2817.3,2815.4,3.48689462]
[1769375433602,3.5698509,2817.7,2815.4,3.66468462]
[1769375435305,3.5698509,2817.7,2815.5,3.73450385]
[1769375436204,3.5698509,2817.7,2814.5,9.2069814]
[1769375436403,0.17777,2815.8,2813.9,3.85344023]
[1769375436605,6.13,2815.7,2813.9,3.85344023]
[1769375436795,0.1778,2815.4,2813.9,3.85344023]
[1769375437309,0.18046769,2815.4,2813.9,3.85612317]
[1769375437803,4.33335048,2815.3,2813.9,3.85612317]
[1769375438001,4.32739556,2815.2,2813.9,3.85612317]
[1769375438200,0.18046769,2815.4,2813.9,3.85612317]
[1769375438511,4.32739542,2815.3,2813.9,3.85612317]
[1769375438697,4.32739542,2815.2,2813.9,3.85612317]
[1769375438901,0.18046769,2815.4,2813.9,3.85612317]
[1769375439106,4.32254756,2815.3,2813.9,3.85612317]
[1769375439303,0.1778,2815.3,2813.9,0.00268294]
[1769375439508,4.32006916,2815.2,2813.9,0.00268294]
[1769375439808,0.00266769,2815.4,2813.9,3.85612318]
[1769375442108,0.00266769,2815.4,2814.1,3.85344024]
[1769375446704,2.11545553,2816.3,2814.3,3.83760637]
[1769375446913,2.11545553,2816.5,2814.3,4.01546637]
[1769375447113,4.3859273,2816.4,2814.3,4.01546637]
[1769375447308,4.3859273,2816.3,2814.3,4.01546637]
[1769375447609,2.11545553,2816.5,2814.3,4.01546637]
[1769375447814,2.11545553,2816.3,2814.3,4.01546637]
[1769375448015,4.38612623,2816.2,2814.3,4.01546637]
[1769375448610,4.38612623,2816.2,2814.3,3.83760637]
[1769375449210,0.17779,2815.6,2814.3,3.83760637]
[1769375449515,2.11545553,2815.5,2813.9,0.00268294]
[1769375449816,6.50158176,2815.4,2813.9,0.00268294]
[1769375450013,6.50158176,2815.3,2813.9,3.84253572]
[1769375450316,6.50158176,2815.2,2813.9,3.84253572]
[1769375450921,6.97912623,2815.2,2813.9,3.84253572]
[1769375451120,4.38612623,2815.1,2813.9,3.84253572]
[1769375451920,4.38612623,2815.0,2813.9,3.84253572]
[1769375452117,4.88925553,2815.3,2813.9,3.84253572]
[1769375452313,4.3857665,2815.2,2813.9,3.84253572]
[1769375452513,4.3857665,2815.1,2813.9,3.84253572]
[1769375452714,4.3857665,2815.0,2813.9,3.84253572]
[1769375452914,4.88925553,2815.3,2813.9,3.84253572]
[1769375453118,4.38497014,2815.2,2813.9,3.84253572]
[1769375453316,4.38497014,2815.1,2813.9,3.84253572]
[1769375453518,4.38497014,2815.0,2813.9,3.84253572]
[1769375453824,4.88925553,2815.3,2813.9,3.84253572]
[1769375454016,4.38447745,2815.2,2813.9,3.84253572]
[1769375454320,4.38447745,2815.1,2813.9,3.84253572]
[1769375454517,4.38447745,2815.0,2813.9,3.84253572]
[1769375454718,4.88925553,2815.3,2813.9,3.84253572]
[1769375454920,4.38415103,2815.2,2813.9,3.84253572]
[1769375455119,4.38415103,2815.1,2813.9,3.84253572]
[1769375455320,4.38415103,2815.0,2813.9,3.84253572]
[1769375455519,4.88925553,2815.3,2813.9,3.84253572]
[1769375455722,4.38406641,2815.2,2813.9,3.84253572]
[1769375455930,0.17774,2816.2,2814.4,3.73625298]
[1769375456118,0.17774,2816.2,2814.4,7.29025298]
[1769375456426,0.00248753,2816.5,2814.5,3.73625298]
[1769375457522,0.17773,2816.4,2814.5,3.73625298]
[1769375457724,2.11545553,2816.1,2814.5,3.73625298]
[1769375458222,2.29320553,2816.1,2814.5,3.73625298]
[1769375458424,4.73145553,2816.4,2814.5,3.73625298]
[1769375458739,0.00248753,2816.5,2814.8,3.76917312]
[1769375459025,0.17773,2816.4,2814.8,3.76917312]
[1769375459219,2.29318553,2816.4,2814.8,3.76917312]
[1769375460128,2.622,2816.3,2814.8,3.76917312]
[1769375461129,4.73745553,2816.3,2814.8,3.76917312]
[1769375461525,2.11545553,2816.2,2814.8,3.76917312]
[1769375462133,4.91519553,2816.3,2814.8,3.76917312]
[1769375462427,2.79974,2816.3,2814.8,3.76917312]
[1769375463724,2.29320553,2816.1,2814.8,3.76917312]
[1769375464025,34.39709528,2816.3,2814.8,3.76917312]
[1769375464026,2.11545553,2815.9,2814.8,3.76917312]
[1769375464218,4.76745553,2815.8,2814.1,3.7715482]
[1769375464423,2.11545553,2815.7,2814.1,3.7715482]
[1769375464623,4.76745553,2815.8,2814.1,3.7715482]
[1769375465427,2.11545553,2815.6,2814.1,3.7715482]
[1769375465628,2.11545553,2815.4,2814.1,3.7715482]
[1769375465829,2.11545553,2815.2,2814.1,3.7715482]
[1769375467432,4.77845553,2815.3,2814.1,3.7715482]
[1769375467932,4.39961115,2815.2,2814.1,3.7715482]
[1769375468134,4.39961115,2815.1,2814.1,3.7715482]
[1769375468434,31.95284528,2816.1,2814.1,3.7715482]
[1769375468626,31.77509528,2816.2,2814.2,0.17787]
[1769375468824,31.77509528,2816.2,2814.3,3.77773781]
[1769375469134,31.77758281,2816.5,2814.5,3.59987781]
[1769375469333,31.77758281,2816.5,2814.7,3.59987781]
[1769375469833,0.00248753,2816.5,2814.7,3.59987781]
[1769375470332,0.00248753,2816.5,2814.8,9.23787781]
[1769375471029,0.17773,2816.4,2814.3,3.77773781]
[1769375471232,3.67879454,2815.8,2813.9,3.60256075]
[1769375471428,3.67880454,2815.6,2813.9,3.60256075]
[1769375471635,3.50102454,2815.4,2813.9,0.00268294]
[1769375471836,3.50102454,2815.0,2813.9,0.00268294]
[1769375472036,6.18902454,2814.9,2813.9,0.00268294]
[1769375472734,2.688,2814.9,2813.9,0.00268294]
[1769375473627,6.18902454,2814.9,2813.9,0.00268294]
[1769375473943,3.50102454,2814.8,2813.2,2.084]
[1769375474237,3.50102454,2814.8,2813.1,2.084]
[1769375474736,3.50102454,2814.8,2813.1,2.08760431]
[1769375475325,3.50102454,2814.8,2813.1,0.00360431]
[1769375475937,3.50102454,2814.8,2813.1,3.76870554]
[1769375476133,3.50102454,2814.8,2813.1,0.00360431]
[1769375476333,3.67886454,2814.8,2813.1,0.00360431]
[1769375477930,3.75173208,2814.7,2813.1,0.00360431]
[1769375480334,3.75173208,2814.6,2813.1,0.00360431]
[1769375480538,2.74,2814.5,2813.1,0.00360431]
[1769375480835,2.7436029,2814.5,2813.1,0.00360431]
[1769375482145,6.67318498,2814.5,2813.1,0.00360431]
[1769375482340,7.98580427,2814.4,2813.1,0.00360431]
[1769375482640,4.23407219,2814.3,2813.1,0.00360431]
[1769375482942,3.75173208,2814.4,2813.1,0.00360431]
[1769375483240,4.23370159,2814.3,2813.1,0.00360431]
[1769375483442,3.75173208,2814.4,2813.1,0.00360431]
[1769375483741,4.23234958,2814.3,2813.1,0.00360431]
[1769375483940,3.75173208,2814.4,2813.1,0.00360431]
[1769375484135,4.2323498,2814.3,2813.1,0.00360431]
[1769375484345,3.75173208,2814.4,2813.1,0.00360431]
[1769375484542,4.23110934,2814.3,2813.1,0.00360431]
[1769375484741,3.75173208,2814.4,2813.1,0.00360431]
[1769375484943,7.98284382,2814.3,2813.1,0.00360431]
[1769375485243,3.75173208,2814.3,2813.1,0.00360431]
[1769375486845,3.92959208,2814.3,2813.1,0.00360431]
[1769375491054,3.92961208,2814.1,2813.1,0.00360431]
[1769375491349,3.75173208,2813.9,2813.1,0.00360431]
[1769375491649,2.764,2814.0,2813.1,0.00360431]
[1769375492049,6.51573208,2814.0,2813.1,0.00360431]
[1769375493853,2.764,2814.0,2813.1,0.00360431]
[1769375501152,4.25181101,2813.9,2813.1,0.00360431]
[1769375501353,2.764,2814.0,2813.1,0.00360431]
[1769375501652,4.25204937,2813.9,2813.1,0.00360431]
[1769375501851,2.764,2814.0,2813.1,0.00360431]
[1769375502054,4.25204937,2813.9,2813.1,0.00360431]
[1769375502356,2.764,2814.0,2813.1,0.00360431]
[1769375502555,4.25281805,2813.9,2813.1,0.00360431]
[1769375502855,2.764,2814.0,2813.1,0.00360431]
[1769375503156,4.25281803,2813.9,2813.1,0.00360431]
[1769375503454,4.25281803,2813.8,2813.1,0.00360431]
[1769375503757,3.64528197,2814.1,2813.1,0.00360431]
[1769375503957,4.25441289,2814.0,2813.1,0.00360431]
[1769375504152,4.25441289,2813.9,2813.1,0.00360431]
[1769375504349,4.25441289,2813.8,2813.1,0.00360431]
[1769375504660,2.792,2814.2,2813.1,0.00360431]
[1769375504860,4.25481259,2814.1,2813.1,0.00360431]
[1769375505164,2.792,2814.2,2813.1,0.00360431]
[1769375505458,4.25526304,2814.1,2813.1,0.00360431]
[1769375505649,2.792,2814.2,2813.1,0.00360431]
[1769375505850,4.25526343,2814.1,2813.1,0.00360431]
[1769375506052,2.792,2814.2,2813.1,0.00360431]
[1769375506249,4.25576181,2814.1,2813.1,0.00360431]
[1769375506550,2.792,2814.2,2813.1,0.00360431]
[1769375506852,0.0036029,2814.5,2813.1,3.73357702]
[1769375508354,3.64528197,2814.3,2813.1,0.00360431]
[1769375508562,7.89922294,2814.2,2813.1,0.00360431]
[1769375508864,3.64528197,2814.2,2813.1,0.00360431]
[1769375510951,0.0036029,2814.5,2813.1,0.00360431]
[1769375511153,4.25485582,2814.4,2813.1,3.73357702]
[1769375511354,0.0036029,2814.5,2813.1,3.73357702]
[1769375511561,4.254457,2814.4,2813.1,3.73357702]
[1769375511762,0.0036029,2814.5,2813.1,3.73357702]
[1769375511962,4.25443224,2814.4,2813.1,3.73357702]
[1769375512166,0.0036029,2814.5,2813.1,3.73357702]
[1769375512358,4.25417934,2814.4,2813.1,3.73357702]
[1769375512563,0.0036029,2814.5,2813.1,3.73357702]
[1769375516062,0.0036029,2814.5,2813.2,3.824]
[1769375517260,3.64888487,2814.5,2813.2,3.824]
[1769375521367,0.0036029,2814.5,2813.1,3.73357702]
[1769375521667,0.0036029,2814.5,2813.1,6.21057702]
[1769375521868,3.64888487,2814.5,2813.1,6.21057702]
[1769375523276,3.64888487,2814.5,2813.1,3.73357702]
[1769375524873,3.64888487,2814.5,2813.1,0.00360431]
[1769375525175,3.68573415,2814.3,2813.1,0.00360431]
[1769375526064,7.93693966,2814.2,2813.1,0.00360431]
[1769375526269,3.68573415,2814.2,2813.1,0.00360431]
[1769375526771,3.68573415,2814.0,2813.1,0.00360431]
[1769375530976,0.17787,2814.2,2813.1,0.00360431]
[1769375531576,3.68573415,2814.4,2813.1,0.00360431]
[1769375533175,4.23772578,2814.3,2813.1,0.00360431]
[1769375533381,3.68573415,2814.4,2813.1,0.00360431]
[1769375533580,4.23772578,2814.3,2813.1,0.00360431]
[1769375533779,3.68573415,2814.4,2813.1,0.00360431]
[1769375539884,0.0036029,2814.5,2813.1,3.63288581]
[1769375540687,0.0036029,2814.5,2813.1,7.45688581]
[1769375542191,0.0036029,2814.5,2813.2,3.6292815]
[1769375548301,0.0036029,2814.5,2813.2,6.0912815]
[1769375549104,0.0036029,2814.5,2813.3,3.6292815]
[1769375549999,3.7736127,2815.2,2813.3,3.8072015]
[1769375550199,3.5958027,2815.2,2813.5,3.6292815]
[1769375550494,3.5958027,2815.2,2813.6,3.6292815]
[1769375550695,3.5958027,2815.6,2813.8,3.6292815]
[1769375550892,3.5958027,2815.4,2813.9,5.7142815]
[1769375551092,3.59848727,2815.4,2813.9,5.7142815]
[1769375553799,3.59848727,2815.4,2813.3,3.59933011]
[1769375554099,3.59848727,2815.4,2813.4,9.23933011]
[1769375554297,3.49813479,2815.2,2813.4,3.59933011]
[1769375554598,3.49813479,2815.2,2813.4,5.68433011]
[1769375555898,0.1778,2815.3,2813.5,3.59933011]
[1769375556101,0.00268457,2815.4,2813.5,3.59933011]
[1769375557100,0.00268457,2815.4,2814.0,3.59933011]
[1769375558701,0.00268457,2815.4,2813.7,2.133]
[1769375558702,3.50081936,2815.4,2813.7,2.133]
[1769375562499,3.50081936,2815.4,2813.6,7.42333011]
[1769375562804,3.49813479,2815.2,2813.6,3.824]
[1769375566007,3.49813479,2815.2,2813.6,7.42333011]
[1769375569008,4.23089428,2815.1,2813.6,7.42333011]
[1769375569202,3.49813479,2815.2,2813.6,7.42333011]
[1769375569402,4.23200892,2815.1,2813.6,7.42333011]
[1769375569603,3.49813479,2815.2,2813.6,7.42333011]
[1769375569902,3.49813479,2815.2,2813.6,3.59933011]
[1769375571702,0.00268457,2815.4,2813.6,3.59933011]
[1769375571905,4.23252461,2815.3,2813.6,3.59933011]
[1769375572209,3.50081936,2815.4,2813.6,3.59933011]
[1769375572509,4.23293516,2815.3,2813.6,3.59933011]
[1769375572711,3.50081936,2815.4,2813.6,3.59933011]
[1769375572909,4.23293526,2815.3,2813.6,3.59933011]
[1769375573110,3.50081936,2815.4,2813.6,3.59933011]
[1769375573306,4.23292661,2815.3,2813.6,3.59933011]
[1769375573506,3.50081936,2815.4,2813.6,3.59933011]
[1769375574008,3.49813479,2815.2,2813.6,3.59933011]
[1769375574306,3.49813479,2815.2,2813.2,3.824]
[1769375574307,3.67595479,2815.0,2813.2,5.68433011]
[1769375574505,7.7314839,2814.9,2813.3,3.59933011]
[1769375574808,3.49813479,2814.9,2813.3,3.59933011]
[1769375575910,4.23443009,2814.8,2813.3,3.59933011]
[1769375576110,3.49813479,2814.9,2813.3,3.59933011]
[1769375576410,4.23442997,2814.8,2813.3,3.59933011]
[1769375576612,2.12814067,2815.2,2813.3,3.59933011]
[1769375576806,9.86048301,2815.2,2813.3,3.59933011]
[1769375577004,4.23420755,2815.1,2813.3,3.59933011]
[1769375578208,7.73234234,2815.1,2813.3,3.59933011]
[1769375578406,3.49813479,2814.9,2813.3,3.59933011]
[1769375578609,3.49813479,2814.9,2813.3,5.68433011]
[1769375579512,3.49813479,2814.7,2813.3,5.68433011]
[1769375581911,3.49813479,2814.7,2813.3,3.59933011]
[1769375582113,3.49813479,2814.7,2813.3,6.08733011]
[1769375582512,3.49813479,2814.7,2813.3,3.59933011]
[1769375582810,2.12814067,2815.0,2813.3,2.489]
[1769375582811,3.49813479,2814.5,2813.3,2.489]
[1769375583012,3.49813479,2814.5,2813.1,0.00360431]
[1769375583211,3.49813479,2814.5,2813.1,2.12960431]
[1769375583711,3.49813479,2814.5,2813.1,0.00360431]
[1769375584014,3.68477114,2814.1,2813.1,0.00360431]
[1769375584213,3.68477114,2813.9,2813.1,0.00360431]
[1769375587821,3.68477114,2813.9,2812.2,3.7457756]
[1769375588112,2.97,2814.1,2812.4,3.7457756]
[1769375588320,5.76977114,2814.3,2812.4,3.7457756]
[1769375588819,5.76977114,2814.3,2812.4,3.74854112]
[1769375590418,3.68477114,2814.2,2812.4,0.00276552]
[1769375590714,3.68477114,2814.0,2812.4,0.00276552]
[1769375590918,3.68477114,2814.0,2812.4,3.74854112]
[1769375597829,3.68477114,2814.0,2812.5,5.98235734]
[1769375598122,3.68477114,2814.0,2812.5,9.80635734]
[1769375598424,3.61791605,2813.8,2812.4,0.00276552]
[1769375598821,3.61791605,2813.4,2812.1,1.5734929]
[1769375599224,3.61791605,2813.2,2812.1,1.5734929]
[1769375599829,3.62059653,2813.2,2812.1,1.57658292]
[1769375600628,0.00268048,2813.2,2812.2,3.48535734]
[1769375604033,0.00268048,2813.2,2812.2,7.30935734]
[1769375605737,0.00268048,2813.2,2812.2,3.824]
[1769375606126,3.62059653,2813.2,2812.2,3.824]
[1769375606527,0.00268048,2813.2,2812.2,3.824]
[1769375608538,0.00268048,2813.2,2812.2,7.30935734]
[1769375609038,0.1779,2813.7,2812.2,7.30935734]
[1769375609039,3.61791605,2814.0,2812.3,3.48535734]
[1769375609237,4.22092576,2813.9,2812.4,3.48535734]
[1769375609438,3.61791605,2814.0,2812.4,3.48535734]
[1769375609735,4.22126864,2813.9,2812.4,3.48535734]
[1769375609936,0.00344834,2813.9,2812.4,3.48535734]
[1769375613644,0.00344834,2813.9,2812.4,3.66333734]
[1769375616942,3.68861203,2813.7,2812.1,1.57658292]
[1769375617245,3.68861203,2813.7,2812.2,3.57392583]
[1769375617745,0.00344834,2813.9,2812.2,3.57392583]
[1769375618343,0.00344834,2813.9,2812.2,3.75192583]
[1769375618546,0.00344834,2813.9,2812.4,3.57392583]
[1769375621448,0.00344834,2813.9,2812.6,3.57392583]
[1769375625750,0.00344834,2813.9,2812.6,4.89869107]
[1769375625951,3.68861203,2814.6,2812.8,3.57392583]
[1769375626148,3.68861203,2814.6,2813.0,3.57392583]
[1769375626352,3.68861203,2814.6,2813.1,2.086]
[1769375626848,3.69313043,2814.6,2813.1,2.086]
[1769375627649,0.0045184,2814.6,2813.2,3.57392583]
[1769375629051,0.0045184,2814.6,2813.4,3.57392583]
[1769375630549,3.86641203,2815.4,2813.4,3.75184583]
[1769375631055,2.12814067,2815.8,2813.7,3.57392583]
[1769375631056,3.68861203,2815.8,2813.7,3.57392583]
[1769375631349,3.68861203,2815.7,2813.7,3.57392583]
[1769375631549,3.69277989,2815.7,2813.7,3.57392583]
[1769375636454,3.69277989,2815.7,2813.9,3.57392583]
[1769375636657,3.69277989,2815.7,2814.0,2.085]
[1769375636845,3.69277989,2815.7,2814.0,5.909]
[1769375637050,3.69277989,2815.7,2814.0,9.48292583]
[1769375637456,3.69277989,2815.7,2814.1,3.57392583]
[1769375637654,3.69277989,2815.7,2814.5,0.88204522]
[1769375638062,3.68861203,2815.5,2814.3,0.88204522]
[1769375638256,3.68861203,2815.3,2814.1,0.88539465]
[1769375639348,3.68861203,2815.3,2814.3,0.88204522]
[1769375640858,3.68861203,2815.3,2814.5,0.88204522]
[1769375642360,3.69277989,2815.7,2814.5,0.88204522]
[1769375652669,3.69277989,2815.7,2814.7,0.88204522]
[1769375653669,3.69277989,2815.7,2814.5,0.88204522]
[1769375653871,3.85563359,2815.3,2814.1,0.88539465]
[1769375654574,3.85563359,2814.9,2814.1,0.00334943]
[1769375656478,3.84213484,2815.2,2814.1,0.88539465]
[1769375656678,3.66432484,2815.0,2814.1,0.88539465]
[1769375659983,3.66432484,2815.0,2814.1,0.00334943]
[1769375660483,4.54637006,2815.0,2813.7,0.88204522]
[1769375661479,4.54637006,2815.0,2813.7,0.88456375]
[1769375661682,3.66432484,2814.8,2812.8,7.16231546]
[1769375661870,3.66432484,2814.6,2812.8,3.60731546]
[1769375662074,3.66432484,2814.4,2812.8,5.69231546]
[1769375662378,3.66432484,2814.4,2812.9,3.60731546]
[1769375662571,3.66432484,2814.8,2813.7,0.88266212]
[1769375662777,3.66432484,2814.8,2813.7,0.88709204]
[1769375665081,3.66432484,2814.8,2813.7,0.00442992]
[1769375665776,3.66432484,2814.6,2813.7,0.00442992]